[Event "1000GM Schev-C-A February 2024"]
[Site "Santa Clara"]
[Date "2024.02.24"]
[Round "1.1"]
[White "Tang, Dylan"]
[Black "Zuluaga Mancilla, Cesar"]
[Result "1-0"]
[ECO "B41"]
[WhiteElo "2206"]
[BlackElo "2251"]
[Annotator "TA"]
[PlyCount "62"]
[EventDate "2024.02.13"]
[EventType "schev"]
[EventCountry "USA"]
[SourceTitle "playchess.com"]
[Source "ChessBase"]
[SourceQuality "1"]
[TimeControl "5400+30"]

{[%evp 15,62,41,71,69,67,71,71,60,87,85,74,70,69,75,61,67,68,44,67,42,105,107,136,133,135,147,146,164,164,171,416,154,155,150,209,208,593,614,1649,1370,1614,1437,1783,1647,29993,29994,29997,29998,29998]} 1. e4 {[%emt 0:03:56]} c5 {[%emt 0:04:48]} 2. Nf3 {[%emt 0:01:06]} e6 {[%emt 0:00:26]} 3. d4 {[%emt 0:00:08]} cxd4 {[%emt 0:00:06]} 4. Nxd4 {[%emt 0:00:05]} a6 {[%emt 0:00:06]} 5. c4 {[%emt 0:00:04]} Nf6 {[%emt 0:01:14]} 6. Nc3 {[%emt 0:00:12]} Qc7 {[%emt 0:00:12]} 7. a3 {[%emt 0:02:35]} Nc6 {[%emt 0:02:54]} 8. Be3 {[%emt 0:02:41]} Ne5 {[%emt 0:03:03]} 9. Rc1 {[%emt 0:03:10]} Neg4 {[%emt 0:00:24][%cal Og4e3]} 10. Bg5 {[%emt 0:14:32][%cal Be3g5,Bg5h4,Bh4g3][%mdl 32]} h6 {[%emt 0:00:22]} 11. Bh4 {[%emt 0:00:40] White is better.} d6 {[%emt 0:00:40]} 12. Be2 {[%emt 0:03:29]} g5 {[%emt 0:00:23]} 13. Bg3 {[%emt 0:02:16]} Ne5 {[%emt 1:22:22]} 14. h4 {[%emt 0:11:38] Hoping for hxg5.} Rg8 {[%emt 0:00:00]} 15. hxg5 {[%emt 0:00:40]} hxg5 {[%emt 0:00:00]} 16. b4 {[%emt 0:02:59]} Bd7 {[%emt 0:00:00]} 17. Nb3 {[%emt 0:48:49]} b6 {[%emt 0:00:00]} (17... Nxc4 $2 18. Bxc4 Qxc4 19. Na5 $18) (17... Ng6 $1 $14) 18. Qd4 $16 {[%emt 0:00:00]} Be7 {[%emt 0:02:30] [#]} 19. c5 $1 {[%emt 0:01:00][%mdl 512]} Nc6 {[%emt 0:00:00]} (19... bxc5 20. bxc5) 20. Qd2 {[%emt 0:00:00] White has more active pieces.} bxc5 {[%emt 0:00:00]} 21. Nxc5 {[%emt 0:00:00]} Bc8 {[%emt 0:00:00]} 22. b5 {[%emt 0:00:00]} Nb8 {[%emt 0:00:00]} (22... Ne5) 23. Nxa6 $2 {[%emt 0:00:00]} (23. bxa6 $18 {has better winning chances.} Nxa6 (23... Qxc5 $2 24. Nb5 $18) 24. Nb5) 23... Nxa6 {[%emt 0:00:00]} 24. bxa6 {[%emt 0:00:00]} (24. Nd5 Qd7 $18) 24... Qb6 {[%emt 0:00:00]} (24... Qd8 $16 25. e5 (25. Bb5+ Kf8 $16) 25... dxe5) 25. Nb5 $18 {[%emt 0:00:00] And now Nc7+ would win.} Nxe4 $2 {[%emt 0:03:30] [#]} (25... Bxa6 26. Nc7+ (26. Nxd6+ Bxd6 27. Qxd6 Qa5+ 28. Qb4 Qxb4+ 29. axb4 Bxe2 $14) 26... Kd7) 26. Qb4 $1 {[%emt 0:03:30] aiming for Nc7+.} Nxg3 {[%emt 0:00:00]} 27. Nc7+ {[%emt 0:00:00]} (27. fxg3 d5 (27... Bxa6 $2 {is the wrong capture.} 28. Nc7+ $18) 28. Qc3 Bd8 $18 (28... Qxa6 $2 {loses.} 29. Nc7+ Kf8 30. Bxa6 $18)) 27... Qxc7 {[%emt 0:00:00]} 28. Rxc7 {[%emt 0:00:00]} Nxh1 {[%emt 0:00:00]} 29. Qb5+ {[%emt 0:00:00]} Kd8 {[%emt 0:00:00]} 30. Qc6 {[%emt 0:00:00]} g4 {[%emt 0:00:00]} 31. Bb5 {[%emt 0:00:00]} Bf8 {[%emt 0:03:00] Weighted Error Value: White=0.18 (very precise) /Black=0.66.  Missed win:     	White=1     	---        Mistake:       	---       	Black=4      Inaccurate:     	---       	Black=2      OK:         	White=9     	Black=4      Best:        	---       	Black=1      Strong:       	White=1     	---        Brilliant:      	White=1     	---} 1-0

[Event "1000GM Schev-C-A February 2024"]
[Site "Santa Clara"]
[Date "2024.02.24"]
[Round "1.2"]
[White "Min, Ryan"]
[Black "Delgado Ramirez, Neuris"]
[Result "0-1"]
[ECO "E40"]
[WhiteElo "2063"]
[BlackElo "2517"]
[Annotator "TA"]
[PlyCount "80"]
[EventDate "2024.02.13"]
[EventType "schev"]
[EventCountry "USA"]
[SourceTitle "playchess.com"]
[Source "ChessBase"]
[SourceQuality "1"]
[TimeControl "5400+30"]

{[%evp 9,80,33,29,6,27,4,23,24,27,18,22,11,39,17,52,23,38,33,44,20,19,0,0,0,29,-20,-15,-20,-20,-128,-128,-117,-130,-137,-126,-156,-168,-191,-182,-191,-171,-172,-170,-192,-171,-263,-248,-254,-229,-246,-231,-291,-299,-318,-329,-387,-372,-373,-376,-386,-382,-426,-431,-433,-429,-415,-407,-448,-439,-638,-597,-29996,-29997]} 1. d4 {[%emt 0:00:02]} Nf6 {[%emt 0:02:10]} 2. c4 {[%emt 0:00:04]} e6 {[%emt 0:00:13]} 3. Nc3 {[%emt 0:00:05]} Bb4 {[%emt 0:00:05]} 4. e3 {[%emt 0:00:07]} c6 {[%emt 0:00:09]} 5. Bd3 {[%emt 0:01:44]} d5 {[%emt 0:00:11]} 6. cxd5 {[%emt 0:00:14]} exd5 {[%emt 0:01:36]} 7. Nge2 {[%emt 0:00:09]} Bd6 {[%emt 0:02:14]} 8. f3 {[%emt 0:06:02] White has an edge.} c5 {[%emt 0:00:14]} 9. O-O {[%emt 0:06:07]} Nc6 {[%emt 0:00:20]} 10. Kh1 {[%emt 0:05:39]} a6 {[%emt 0:05:31]} 11. dxc5 {[%emt 0:04:04]} Bxc5 {[%emt 0:00:05]} 12. e4 {[%emt 0:00:17]} dxe4 {[%emt 0:01:34]} 13. Nxe4 {[%emt 0:05:28]} Be7 {[%emt 0:00:09]} 14. N2c3 {[%emt 0:04:05]} O-O {[%emt 0:00:55]} 15. Bf4 {[%emt 0:06:29]} Be6 {[%emt 0:02:10]} 16. Ng5 {[%emt 0:03:58]} Bd7 {[%emt 0:00:37]} 17. Bc4 {[%emt 0:05:02]} (17. Re1 $142) 17... Na5 {[%emt 0:04:40]} 18. Bd5 {[%emt 0:07:25]} Nxd5 {[%emt 0:07:52]} 19. Nxd5 {[%emt 0:05:04] Black keeps a firm grip on the game.} (19. Qxd5 $11 {keeps the balance.} h6 20. Nge4) 19... Bxg5 $17 {[%emt 0:00:56] This pair of bishops is nice.} 20. Bc7 {[%emt 0:00:07] [#]} Be6 $1 {[%emt 0:00:36]} 21. Bxd8 {[%emt 0:04:06]} Raxd8 {[%emt 0:00:10]} 22. f4 {[%emt 0:03:03]} Rxd5 {[%emt 0:00:50]} 23. Qf3 {[%emt 0:05:16] White is weak on the dark squares} Bf6 {[%emt 0:01:12][%cal Od5b5]} 24. Rad1 {[%emt 0:04:21]} Rb5 {[%emt 0:01:56]} 25. b3 {[%emt 0:00:18]} Nc6 {[%emt 0:00:05]} 26. Qe4 {[%emt 0:03:31]} h5 {[%emt 0:02:52]} 27. f5 {[%emt 0:02:35]} (27. Rd6 $142) 27... Bc8 {[%emt 0:00:11]} 28. Rd5 {[%emt 0:03:08]} Rxd5 {[%emt 0:00:35]} 29. Qxd5 {[%emt 0:00:05]} Rd8 {[%emt 0:00:15]} 30. Qf3 {[%emt 0:01:38]} h4 {[%emt 0:00:08]} 31. Rd1 {[%emt 0:02:05]} Nd4 {[%emt 0:01:11]} 32. Qe4 {[%emt 0:02:28]} h3 {[%emt 0:00:45]} (32... Bxf5 33. Qxb7 h3 34. gxh3 $19) 33. gxh3 {[%emt 0:05:26]} Bd7 {[%emt 0:00:41] ...Bc6 would now be deadly.} (33... Bxf5 34. Qxb7 a5 (34... Bxh3 $2 35. Qxa6 Bg4 36. Rd2 $19) 35. a4 $19) 34. Rxd4 {[%emt 0:01:06]} Bc6 {[%emt 0:01:55]} (34... Bxd4 35. Qxb7 Bxf5 36. Kg2 $19) 35. Qxc6 {[%emt 0:00:52]} ({Not} 35. Rxd8+ $2 Bxd8 $19) 35... bxc6 $19 {[%emt 0:00:07] KRB-KR} 36. Ra4 {[%emt 0:00:08]} Rd5 {[%emt 0:00:41]} 37. Rxa6 {[%emt 0:00:15]} c5 {[%emt 0:00:03]} ({Don't play} 37... Rxf5 38. Rxc6 Rf2 39. Rc8+ Kh7 40. a4) 38. Ra5 {[%emt 0:01:14]} Rxf5 {[%emt 0:00:17]} 39. b4 {[%emt 0:00:09]} (39. Kg2 $142) 39... Bd4 {[%emt 0:00:05] ( -> ...Rg5)} 40. bxc5 {[%emt 0:01:10]} Rg5 {[%emt 0:00:09] Weighted Error Value: White=0.42/Black=0.07 (flawless) .  Mistake:       	White=4     	---        Inaccurate:     	White=2     	Black=3      OK:         	White=11    	Black=17     Best:        	White=2     	Black=1      Strong:       	---       	Black=1} 0-1

[Event "1000GM Schev-C-A February 2024"]
[Site "Santa Clara"]
[Date "2024.02.24"]
[Round "1.3"]
[White "Atwell, Rose"]
[Black "Arenas, David"]
[Result "1/2-1/2"]
[ECO "C84"]
[WhiteElo "2104"]
[BlackElo "2406"]
[Annotator "TA"]
[PlyCount "75"]
[EventDate "2024.02.13"]
[EventType "schev"]
[EventCountry "USA"]
[SourceTitle "playchess.com"]
[Source "ChessBase"]
[SourceQuality "1"]
[TimeControl "5400+30"]

{[%evp 13,75,38,57,57,54,52,50,48,49,47,52,45,54,44,39,27,21,6,24,-11,13,8,27,0,0,0,0,0,14,11,6,0,0,0,0,0,0,0,0,0,0,0,0,0,0,0,6,0,0,0,0,-4,0,0,0,0,0,0,-8,-6,0,0,0,-13]} 1. e4 {[%emt 0:00:01]} e5 {[%emt 0:00:19]} 2. Nf3 {[%emt 0:00:06]} Nc6 {[%emt 0:00:09]} 3. Bb5 {[%emt 0:00:05]} a6 {[%emt 0:00:05]} 4. Ba4 {[%emt 0:00:04]} Nf6 {[%emt 0:00:05]} 5. O-O {[%emt 0:00:05]} Nxe4 {[%emt 0:00:04]} 6. d4 {[%emt 0:00:13]} Be7 {[%emt 0:00:05]} 7. Re1 {[%emt 0:04:56]} b5 {[%emt 0:00:12]} 8. Rxe4 {[%emt 0:01:02]} (8. Nxe5 Nxe5 9. dxe5 Bb7 $11 (9... Nxf2 10. Qf3 $11)) (8. dxe5 Nxf2 9. Kxf2 bxa4 $15) 8... d5 {[%emt 0:00:22]} 9. Nxe5 {[%emt 0:00:51]} Nxe5 {[%emt 0:00:09]} 10. Rxe5 {[%emt 0:00:21] White is slightly better.} bxa4 {[%emt 0:00:09]} 11. Nc3 {[%emt 0:04:52][%csl LRa4,LRd5]} O-O {[%emt 0:00:57]} 12. Nxa4 {[%emt 0:16:42]} Bd6 {[%emt 0:04:00]} 13. Re1 {[%emt 0:01:31]} (13. Rxd5 Bxh2+ 14. Kxh2 Qxd5 $17) 13... Bf5 {[%emt 0:21:03]} 14. Nc3 {[%emt 0:04:22][%cal Ba4c3,Bc3e2,Be2g3][%mdl 32]} c6 {[%emt 0:01:14]} 15. Ne2 {[%emt 0:10:04]} Re8 {[%emt 0:05:55]} 16. c3 {[%emt 0:07:47]} Bg4 {[%emt 0:05:49] [#] aiming for ...Qh4. This pair of bishops is nice.} 17. f3 {[%emt 0:06:21]} Bf5 {[%emt 0:09:10]} 18. Ng3 {[%emt 0:03:09]} Qh4 {[%emt 0:02:34] The position is equal.} 19. f4 {[%emt 0:04:29]} Bxf4 {[%emt 0:11:28]} 20. Bxf4 {[%emt 0:01:56]} Rxe1+ {[%emt 0:01:09]} 21. Qxe1 {[%emt 0:00:03]} Qxf4 {[%emt 0:00:04]} 22. Qe7 {[%emt 0:10:37] [#] Rf1 is the strong threat.} Be6 {[%emt 0:02:05]} 23. Rf1 {[%emt 0:00:46]} Qb8 {[%emt 0:00:58]} 24. Nh5 {[%emt 0:03:19]} Qd8 {[%emt 0:00:44]} (24... Qxb2 25. Qg5 g6 26. Nf6+ Kf8 27. Qh6+ (27. Nxh7+ Kg7 $16) 27... Ke7 28. Qh4 $16 (28. Nxh7 Qxc3 29. Qf4 Rc8 $14)) 25. Qxd8+ {[%emt 0:02:58]} Rxd8 $11 {[%emt 0:00:01][%mdl 4096] Endgame. KRB-KRN} 26. Re1 {[%emt 0:01:39]} g5 {[%emt 0:01:58]} 27. Re5 {[%emt 0:01:14]} h6 {[%emt 0:00:10]} 28. h4 {[%emt 0:00:22]} gxh4 {[%emt 0:02:51]} 29. Nf4 {[%emt 0:00:27]} Bg4 {[%emt 0:01:06]} 30. Nd3 {[%emt 0:01:13]} Kf8 {[%emt 0:04:00] Dodges Re7} 31. Nc5 {[%emt 0:03:00]} a5 {[%emt 0:00:13]} 32. Kf2 {[%emt 0:00:48]} Rb8 {[%emt 0:01:27]} 33. b3 {[%emt 0:00:14]} f6 {[%emt 0:00:32]} 34. Re1 {[%emt 0:01:07]} Kf7 {[%emt 0:00:11]} 35. Rh1 {[%emt 0:00:32]} Re8 {[%emt 0:01:33]} 36. Re1 {[%emt 0:00:42] Prevents Re2+} Rb8 {[%emt 0:02:30]} 37. Rh1 {[%emt 0:00:24]} Re8 {[%emt 0:00:08]} 38. Re1 $1 {[%emt 0:00:16] Inhibits Re2+.   Weighted Error Value: White=0.04 (flawless) /Black=0.03 (flawless) .  Inaccurate:     	White=2     	---        OK:         	White=9     	Black=16     Best:        	White=1     	---        Strong:       	White=1     	---} (38. Rxh4 h5 (38... Re2+ $2 39. Kf1 $18) 39. a4 Re2+ 40. Kg1 Rc2 $17) 1/2-1/2

[Event "1000GM Schev-C-A February 2024"]
[Site "Santa Clara"]
[Date "2024.02.24"]
[Round "1.4"]
[White "Jimenez Garcia, Emmanuel"]
[Black "Rajaram, Rohan"]
[Result "1/2-1/2"]
[ECO "D12"]
[WhiteElo "2394"]
[BlackElo "2151"]
[Annotator "TA"]
[PlyCount "106"]
[EventDate "2024.02.13"]
[EventType "schev"]
[EventCountry "USA"]
[SourceTitle "playchess.com"]
[Source "ChessBase"]
[SourceQuality "1"]
[TimeControl "5400+30"]

{[%evp 20,106,32,16,36,35,41,0,20,25,26,-20,44,39,31,20,78,28,36,30,48,37,39,32,22,3,38,31,47,26,67,55,91,83,100,79,119,67,73,24,31,0,0,0,0,0,0,0,0,0,0,0,0,0,0,0,0,0,0,0,0,0,0,0,0,0,0,0,0,0,0,0,0,0,0,0,0,0,0,0,0,0,0,0,0,0,0,0,0]} 1. Nf3 {[%emt 0:00:17]} d5 {[%emt 0:00:22]} 2. e3 {[%emt 0:00:22]} Nf6 {[%emt 0:00:35]} 3. c4 {[%emt 0:01:24]} c6 {[%emt 0:00:26]} 4. d4 {[%emt 0:00:08]} Bf5 {[%emt 0:00:08]} 5. Nc3 {[%emt 0:00:17]} e6 {[%emt 0:00:23]} 6. Nh4 {[%emt 0:00:40]} Bg4 {[%emt 0:01:59]} 7. Qb3 {[%emt 0:00:36]} Qb6 {[%emt 0:01:57]} 8. h3 {[%emt 0:02:32]} Bh5 {[%emt 0:00:06]} 9. g4 {[%emt 0:00:39]} Bg6 {[%emt 0:00:09]} 10. Nxg6 {[%emt 0:01:10]} hxg6 {[%emt 0:00:14]} 11. Bg2 {[%emt 0:00:15]} Be7 {[%emt 0:01:18]} 12. g5 {[%emt 0:01:39]} Nfd7 {[%emt 0:06:37]} 13. e4 {[%emt 0:04:23]} dxc4 {[%emt 0:05:02]} 14. Qxc4 {[%emt 0:00:19]} Na6 {[%emt 0:00:38]} 15. Be3 {[%emt 0:26:15]} (15. O-O $142) 15... Qb4 {[%emt 0:14:01]} (15... Qxb2 $11 16. Rb1 Nb6 17. Qxc6+ (17. Rxb2 $2 Nxc4 18. Rb3 e5 $19) 17... bxc6 18. Rxb2 e5) 16. Qxb4 $14 {[%emt 0:02:01]} Nxb4 {[%emt 0:02:30]} 17. O-O-O {[%emt 0:00:39] Prevents Nc2} O-O-O {[%emt 0:03:55]} (17... e5 $11 {remains equal.}) 18. f4 {[%emt 0:08:04]} (18. h4 $16) 18... Nb6 {[%emt 0:02:28][%cal Bd7b6,Bb6c8,Bc8d6][%mdl 32]} 19. Bf1 {[%emt 0:04:41][%cal Bg2f1,Bf1e2,Be2d3][%mdl 32]} Kb8 {[%emt 0:09:48]} 20. a3 {[%emt 0:06:17]} Na6 {[%emt 0:00:07]} 21. Be2 {[%emt 0:01:35]} Nc7 {[%emt 0:08:12]} 22. Kc2 $36 {[%emt 0:01:16][%mdl 2048] White is pushing.} Nc8 {[%emt 0:01:18]} 23. h4 {[%emt 0:01:02]} Nd6 {[%emt 0:01:00]} 24. Bf2 {[%emt 0:03:07]} Ncb5 {[%emt 0:05:01]} 25. Bd3 {[%emt 0:03:31]} Nxc3 {[%emt 0:02:07]} 26. bxc3 {[%emt 0:00:04]} Rd7 {[%emt 0:00:54]} 27. c4 {[%emt 0:00:29]} Rhd8 {[%emt 0:01:49]} 28. Kb3 {[%emt 0:12:05]} (28. h5 $16) 28... b6 {[%emt 0:08:19][%cal Oc6c5]} 29. Rhe1 {[%emt 0:00:52]} ({Better is} 29. Kc3 $16) 29... Nb7 $1 $11 {[%emt 0:00:31][%cal Oe7c5]} 30. Kb2 {[%emt 0:02:22]} Bc5 {[%emt 0:01:38] The position is equal.} 31. dxc5 {[%emt 0:04:22]} Rxd3 {[%emt 0:01:44]} 32. Kc2 {[%emt 0:00:28]} Rxd1 {[%emt 0:03:43]} (32... Rxa3 33. Rxd8+ (33. cxb6 $2 {loses.} Ra2+ 34. Kc3 Rxf2 $19) 33... Nxd8 34. Bd4 (34. cxb6 $2 Ra2+ 35. Kd3 Rxf2 $19)) (32... Nxc5 $2 33. Rxd3 Rxd3 (33... Nxd3 $2 34. Rd1 $18) 34. Bxc5 $18) 33. Rxd1 {[%emt 0:00:02]} Rxd1 {[%emt 0:00:39]} ({Don't play} 33... bxc5 $6 34. Rxd8+ Nxd8 35. Bxc5 $16) 34. Kxd1 {[%emt 0:00:02]} bxc5 {[%emt 0:00:29][%mdl 4096] Endgame. KB-KN} 35. Kc2 {[%emt 0:00:06]} Kc7 {[%emt 0:00:59]} 36. Be1 {[%emt 0:02:43]} Nd6 {[%emt 0:02:37]} 37. Kd3 {[%emt 0:00:07]} f5 {[%emt 0:02:13]} 38. exf5 {[%emt 0:08:22]} exf5 {[%emt 0:01:16]} 39. Bc3 {[%emt 0:00:35]} Ne8 {[%emt 0:00:25]} 40. Be5+ {[%emt 0:00:11]} Kc8 {[%emt 0:01:06]} 41. Ke3 {[%emt 0:02:21]} Kd7 {[%emt 0:00:37]} 42. Kf3 {[%emt 0:01:16]} Ke6 {[%emt 0:01:17]} 43. Ke3 {[%emt 0:00:50]} Kd7 {[%emt 0:01:31]} 44. a4 {[%emt 0:00:06]} a6 {[%emt 0:00:35]} 45. Kf3 {[%emt 0:00:15]} Ke6 {[%emt 0:00:06]} 46. Kg3 {[%emt 0:00:53]} Kf7 {[%emt 0:01:04]} 47. Kh3 {[%emt 0:00:02]} Kg8 {[%emt 0:01:18]} 48. Kg3 {[%emt 0:00:51]} Kf7 {[%emt 0:00:06]} 49. a5 {[%emt 0:00:21]} Kg8 {[%emt 0:00:44]} 50. Kf3 {[%emt 0:01:12]} Kf7 {[%emt 0:00:05]} 51. Ke3 {[%emt 0:00:08]} Ke6 {[%emt 0:00:06]} 52. Kd3 {[%emt 0:00:31]} Ke7 {[%emt 0:00:51]} 53. Bb8 {[%emt 0:00:31]} Nd6 {[%emt 0:00:50] Weighted Error Value: White=0.14 (very precise) /Black=0.15 (very precise) .  Mistake:       	White=4     	Black=2      Inaccurate:     	White=2     	Black=4      OK:         	White=18    	Black=15     Strong:       	---       	Black=1} 1/2-1/2

[Event "1000GM Schev-C-A February 2024"]
[Site "Santa Clara"]
[Date "2024.02.24"]
[Round "1.5"]
[White "Cardoso Cardoso, Jose Gabriel"]
[Black "Zhou, Ruoyu"]
[Result "1-0"]
[ECO "C78"]
[WhiteElo "2477"]
[BlackElo "2112"]
[Annotator "TA"]
[PlyCount "129"]
[EventDate "2024.02.13"]
[EventType "schev"]
[EventCountry "USA"]
[SourceTitle "playchess.com"]
[Source "ChessBase"]
[SourceQuality "1"]
[TimeControl "5400+30"]

{[%evp 23,129,2,1,0,-10,-2,0,-27,-3,-3,-5,-19,-19,-25,-25,-27,-35,-29,-24,-32,0,-47,0,0,7,0,29,39,62,59,55,0,0,-6,49,15,2,0,0,0,0,0,0,-8,0,-15,16,0,0,-21,-33,-29,-36,-7,189,185,172,173,213,219,209,210,224,213,204,205,217,226,236,227,244,245,233,232,240,235,321,310,299,251,367,368,493,457,535,524,1337,1329,1263,737,689,1005,1214,850,850,850,29975,29974,29973,29974,29983,29984,29984,29985,29985,29986,29988,29986]} 1. e4 {[%emt 0:08:45]} e5 {[%emt 0:00:07]} 2. Nf3 {[%emt 0:00:16]} Nc6 {[%emt 0:00:10]} 3. Bb5 {[%emt 0:00:07]} a6 {[%emt 0:00:12]} 4. Ba4 {[%emt 0:00:11]} Nf6 {[%emt 0:00:10]} 5. O-O {[%emt 0:00:15]} b5 {[%emt 0:00:12]} 6. Bb3 {[%emt 0:00:10]} Bc5 {[%emt 0:00:14]} 7. a4 {[%emt 0:01:11]} Rb8 {[%emt 0:00:13]} 8. c3 {[%emt 0:00:35]} d6 {[%emt 0:00:10]} 9. d4 {[%emt 0:00:07]} Bb6 {[%emt 0:00:08]} 10. a5 {[%emt 0:00:20] C78: Ruy Lopez: Archangelsk and Möller Defences.} Ba7 {[%emt 0:00:07]} 11. h3 {[%emt 0:00:20]} Bb7 {[%emt 0:00:27]} 12. Re1 {[%emt 0:01:16]} O-O {[%emt 0:07:22]} 13. Be3 {[%emt 0:00:13]} exd4 {[%emt 0:05:00]} (13... Nxe4 $6 14. d5 $16) 14. cxd4 {[%emt 0:01:24]} Nb4 {[%emt 0:10:52]} (14... Nxe4 $2 {is the wrong capture.} 15. d5 $18) 15. d5 {[%emt 0:13:55]} (15. Nc3 $5) 15... Bxe3 {[%emt 0:00:31]} (15... c5 {keeps more tension.} 16. dxc6 Bxe3 17. cxb7 Bc5) 16. Rxe3 {[%emt 0:00:07]} c5 {[%emt 0:00:19]} 17. Nc3 {[%emt 0:05:00]} Re8 {[%emt 0:03:37]} 18. Qd2 {[%emt 0:02:37]} c4 $146 {[%emt 0:02:51]} ({Predecessor:} 18... Nd7 19. Bc2 Nxc2 20. Qxc2 Bc8 21. Ne2 Qf6 22. Re1 b4 23. Nc1 Ne5 24. Nxe5 Qxe5 {½-½ Tabatabaei,M (2629)-Schitco,I (2467) Titled Tuesday intern op 21st April blitz 2020 (4)}) 19. Bc2 {[%emt 0:03:14]} Nxc2 {[%emt 0:00:31]} 20. Qxc2 {[%emt 0:00:04]} Nd7 {[%emt 0:04:09]} 21. Nd4 {[%emt 0:04:53]} Ne5 {[%emt 0:05:19]} 22. Rg3 {[%emt 0:02:15]} (22. Nce2 $11) 22... Qf6 {[%emt 0:09:05]} (22... g6 $1 $15 {should be considered.}) 23. Nf5 $11 {[%emt 0:05:00]} Ng6 {[%emt 0:06:29]} 24. Ne2 {[%emt 0:17:38]} Qe5 {[%emt 0:07:23]} 25. Re3 {[%emt 0:00:15]} Ne7 {[%emt 0:05:48]} 26. Nfd4 {[%emt 0:01:36]} f5 {[%emt 0:05:09]} 27. exf5 {[%emt 0:05:16]} (27. Nxf5 $14 Nxf5 28. exf5 Qxd5 29. Nf4) 27... Qxd5 $11 {[%emt 0:00:40]} 28. Rg3 {[%emt 0:00:05]} Qe4 {[%emt 0:04:39]} ({Black should try} 28... Rf8 $11) 29. Qc3 {[%emt 0:04:43]} (29. f6 Qxc2 (29... Ng6 30. Qd2 $16) 30. Rxg7+ Kh8 31. Nxc2 Nf5 32. Rxb7 Rxb7 $15) 29... Qe5 $1 {[%emt 0:01:34]} 30. Re3 {[%emt 0:01:29]} Qf6 $1 {[%emt 0:00:21]} 31. Re6 {[%emt 0:02:34]} Nd5 $1 {[%emt 0:06:40]} 32. Qg3 {[%emt 0:00:09]} Rxe6 {[%emt 0:00:20]} 33. fxe6 {[%emt 0:00:13]} Rd8 {[%emt 0:01:23]} 34. Ra3 {[%emt 0:01:06]} Qg6 {[%emt 0:02:56]} 35. Qh4 {[%emt 0:05:43]} (35. Qxg6 {simplifies} hxg6 36. Rg3 Kh7 37. f3) 35... Qf6 {[%emt 0:02:07]} 36. Qe4 {[%emt 0:01:08]} Qe5 {[%emt 0:01:29]} 37. Ng3 {[%emt 0:00:41]} Qxe4 {[%emt 0:01:17]} 38. Nxe4 {[%emt 0:00:01]} Nf4 $2 {[%emt 0:01:39]} (38... Ne7 $11 {and Black is okay.} 39. f3 Bxe4 40. fxe4 Re8) 39. e7 $1 $18 {[%emt 0:00:35]} Re8 {[%emt 0:00:30]} 40. Nxd6 {[%emt 0:00:04]} Rxe7 {[%emt 0:00:23]} 41. Re3 {[%emt 0:00:15]} Kf8 {[%emt 0:03:11]} ({Not} 41... Rxe3 $2 42. fxe3 Nxh3+ 43. gxh3 $18) 42. Rxe7 {[%emt 0:02:16]} Kxe7 {[%emt 0:00:03]} 43. Nxb7 {[%emt 0:00:08]} Nd3 {[%emt 0:00:15] [#]} 44. Nxb5 $1 {[%emt 0:04:23]} Kd7 {[%emt 0:01:19]} 45. Na3 {[%emt 0:00:49]} Kc7 {[%emt 0:00:12]} 46. Nxc4 {[%emt 0:00:07]} Kxb7 {[%emt 0:00:05] [#]} 47. Kf1 $1 {[%emt 0:00:45]} Kc6 {[%emt 0:01:56]} 48. Ke2 {[%emt 0:00:08]} Nf4+ {[%emt 0:01:27]} 49. Kf3 {[%emt 0:00:07]} Ne6 {[%emt 0:00:25]} 50. Ke4 {[%emt 0:02:22]} Kb5 {[%emt 0:00:37]} 51. Nd2 {[%emt 0:04:33]} Kxa5 {[%emt 0:00:41]} (51... Nc5+ $142 52. Kd4 Ne6+ 53. Ke5 Nc5) 52. f4 $18 {[%emt 0:00:08]} Kb4 {[%emt 0:00:46]} 53. g4 {[%emt 0:01:51]} a5 {[%emt 0:00:53]} 54. h4 {[%emt 0:00:24]} a4 {[%emt 0:01:09]} 55. f5 {[%emt 0:00:37]} Nc5+ {[%emt 0:00:40]} 56. Ke3 {[%emt 0:00:12]} h6 {[%emt 0:00:27]} 57. g5 {[%emt 0:01:17]} hxg5 {[%emt 0:00:08]} 58. hxg5 {[%emt 0:00:09]} Nd7 {[%emt 0:00:12]} 59. Kd4 {[%emt 0:00:32]} Nf8 {[%emt 0:01:18]} 60. g6 {[%emt 0:01:29]} Nd7 {[%emt 0:00:40]} 61. Ne4 {[%emt 0:00:22]} Nf8 {[%emt 0:00:29]} 62. Nc5 {[%emt 0:00:35]} Kb5 {[%emt 0:00:36]} 63. Kd5 {[%emt 0:01:08]} Kb4 {[%emt 0:00:55]} 64. Kd6 {[%emt 0:00:13]} Kb5 {[%emt 0:00:33]} 65. Nxa4 {[%emt 0:00:22]} 1-0